{"text_format":"1","workbook":"xlsx","n_sheets":13,"sheets":["Menu","Plan de Levage","Site Layout","Type 1","Type 2","Type 3","Recherche Angle","Montage des poulies","Équipements","Exigences de levage","Credits","Sheet2","Sheet1"],"not_rendered":{"charts":1,"images":15,"macros":1,"external_links":0,"defined_names":11,"comments":0,"pivot_tables":0},"unopened":[],"bounds":{"document_bytes":16777216,"sheet_cells":100000,"rows_first":2000,"rows_last":500,"rows_between":2000,"halvings":0,"cell_chars":16384,"cell_head_chars":4096},"cells_cut":0,"cells_raw":0,"read":"whole","date_system":"1900"}

{"sheet":"Menu","index":0,"n_rows":56,"n_cols":27,"rows_kept":56,"cut":false,"hidden":false,"merged":[[17,4,17,6],[14,4,14,6],[17,8,17,9],[9,10,9,12],[10,10,10,12],[11,10,11,12],[12,10,12,12],[13,10,13,12],[12,8,12,9],[13,8,13,9],[14,8,14,9],[15,8,15,9],[16,8,16,9],[10,4,10,6],[7,26,7,30],[11,4,11,6],[9,4,9,6],[15,10,15,12],[14,10,14,12],[9,8,9,9],[10,8,10,9],[11,8,11,9],[12,4,12,6],[13,4,13,6],[8,26,25,30],[8,4,8,6],[8,10,8,12],[7,10,7,12],[8,8,8,9],[7,4,7,6],[52,1,54,13],[0,1,0,7],[1,1,1,7],[2,2,2,4],[2,11,2,13],[3,2,3,4],[3,11,3,13],[19,10,19,12],[16,10,16,12],[17,10,17,12],[18,10,18,12],[4,2,4,4],[4,5,4,9],[4,11,4,13],[6,4,6,5],[6,7,6,9]]}
[]
[]
[null,"Contact","Gordon Lyman",null,null,null,null,null,null,null,null,"Bill Griswold"]
[null,"Email","gl@esystemtraining.com ",null,null,null,null,null,null,null,null,"BillGriswold@Live.com"]
[null,"Mobile No"," (210) 410-2091",null,null,"Menu de Configuration",null,null,null,null,null,"(704) 906-9113"]
[]
[null,null,null,null,"Note: Champs en",null,"Bleu","sont pour les entrées",null,null,null,null,null,null,null,null,"Oui",null,null,null,null,null,null,null,"Monopole Tower"]
[null,null,null,null,"Information Project",null,null,null,null,null,"Info Entrepreneur",null,null,null,null,null,"Non",null,null,null,null,null,null,null,"Guyed Tower",null,"Procedures d'utilisation"]
[null,"Date: mm/jj",null,null,null,null,null,null,"Compagnie",null,null,null,null,null,null,null,null,null,null,null,null,null,null,null,null,null,"1 - Mettre les informations sur le projet et l'entrepreneur dans les cellules appropriees a gauche Cette information apparaitra dans le \"plan de montage\".\n2 - La charge levee devrait inclure le poids de la boule de maux de tete ou autre equipment de fixation dans la cellule \"charge a lever\".\n3 - Selectionnez les poulies et les cabestans a utiliser pour le projet. (Voir l'onglet Equipement pour la liste)\n4 - Selectionnez le type de schema de levage (1,2 ou 3)\n5 - Sur la feuille Type de levage Selectionnez le type de tour et remplissez les cellules indiquees en BLEU. Toutes les informations de chargement et d'equipements apparaissent sur les 3 types de levage\n6 - Les boutons permettent une navigation facile entre les feuilles differentes.\n7 - Pour de plus amples instructions, voir les onglets \"Plan de levage\" \" Montage de tete\" et \"Equipements\"."]
[null,"Client ",null,null,null,null,null,null,"Adresse"]
[null,"No Commande Client",null,null,null,null,null,null,"Ville, Province",null,null,null,null,null,null,null,"Distance",null,null,null,null,null,null,null,"YES"]
[null,"Nom du Site",null,null,null,null,null,null,"Contact",null,null,null,null,null,null,null,"Angle"]
[null,"# Site",null,null,null,null,null,null,"No Telephone"]
[null,"Adresse Site",null,null,null,null,null,null,"Monteur Certifié"]
[null,"Ville, Province",null,null,null,null,null,null,"# Project",null,null,null,null,null,null,null,null,null,{"$f":"VLOOKUP(K17,Équipements!B23:C34,2,FALSE)","v":5000}]
[null,"Site Lat: Deg, Min, Sec",null,null,33,30,14.08,null,"Charge (lbs)",null,200,null,null,null,null,null,{"$f":"IF(AD15=\"Distance\",TRUE,FALSE)","v":false},null,{"$f":"VLOOKUP(K18,Équipements!B23:C34,2,FALSE)","v":5000}]
[null,"Site Long: Deg, Min, Sec",null,null,-86,49,18.440000000000001,null,"Poulie Tête",null,"Block 3 - 5000",null,null,null,null,null,null,null,{"$f":"VLOOKUP(K19,Équipements!B9:C20,2,FALSE)","v":5000}]
[null,"Force Class IV",null,null,"Non",null,null,null,"Poulie Base",null,"Block 3 - 5000",null,null,null,null,null,null,null,{"$f":"VLOOKUP(K20,Équipements!B9:C20,2,FALSE)","v":5000}]
[null,null,null,null,null,null,null,null,"Cabestan Levage",null,"Hoist 4 - 5000"]
[null,null,null,null,null,null,null,null,"Cabestan Tag",null,"Hoist 4 - 5000"]
[null,null,null,null,null,null,null,null,null,null,null,null,null,null,null,null,{"$f":"IF(AD15=\"Angle\",TRUE,FALSE)","v":false}]
[]
[null,null,null,null,null,null,null,null,null,null,null,null,null,null,null,null,"Alpha = ",{"$f":"IF(AD15=\"Angle\",G27,F25)","v":0}]
[null,null,null,null,null,null,null,null,null,null,null,null,null,null,null,null,"Standoff = ",{"$f":"IF(AD15=\"Angle\",#REF!,E34)","v":0}]
[null,null,null,null,null,null,null,null,null,null,null,null,null,null,null,null,"Beta = ",{"$f":"ATAN(H39/(F50-R24))*180/PI()","v":{"$error":"#DIV/0!"}}]
[null,null,null,null,null,null,null,null,null,null,null,null,null,null,null,null,"A =",{"$f":"F38/(1-TAN(R23*PI()/180)*TAN(R25*PI()/180))","v":{"$error":"#DIV/0!"}}]
[null,null,null,null,null,null,null,null,null,null,null,null,null,null,null,null,"B =",{"$f":"R26*TAN(R23*PI()/180)","v":{"$error":"#DIV/0!"}}]
[null,null,null,null,null,null,null,null,null,null,null,null,null,null,null,null,"C =",{"$f":"R27*TAN(R25*PI()/180)","v":{"$error":"#DIV/0!"}}]
[null,null,null,null,null,null,null,null,null,null,null,null,null,null,null,null,"D =",{"$f":"R27","v":{"$error":"#DIV/0!"}}]
[null,null,null,null,null,null,null,null,null,null,null,null,null,null,null,null,"Line Load =",{"$f":"SQRT((R26^2)+(R27^2))","v":{"$error":"#DIV/0!"}}]
[null,null,null,null,null,null,null,null,null,null,null,null,null,null,null,null,"Tag Load =",{"$f":"SQRT((R28^2)+(R29^2))","v":{"$error":"#DIV/0!"}}]
[null,null,null,null,null,null,null,null,null,null,null,null,null,null,null,null,"Crown Block",{"$f":"SQRT((R27^2)+((R30+R26)^2))","v":{"$error":"#DIV/0!"}}]
[null,null,null,null,null,null,null,null,null,null,null,null,null,null,null,null,"Error Angle",{"$f":"ATAN(F50/K27)*180/PI()","v":{"$error":"#DIV/0!"}}]
[]
[]
[]
[]
[]
[]
[]
[]
[]
[]
[]
[]
[]
[]
[]
[]
[]
[]
[]
[null,"Avertissement:  Les informations et les calculs par ce document ont ete developpes par une source fiable conformement aux normes de l'industrie et sont consideres comme correctes. Cette information ne devrait pas etre invoquee pour une application specifique sans l'examen par professionnel competent incluant la verification de son exactitude, la pertinence et l'applicabilite. Ce documentpeutne pas etre adaptable a' toutes les situations et doit etre utilise a vois risques et perils"]
[]
[]
[null,{"$f":"Credits!B11","v":"French Version 1.0 - January 11, 2018"},null,null,null,null,null,null,null,null,null,null,null,"Developed by Griswold Tower Software, PC"]

{"sheet":"Plan de Levage","index":1,"n_rows":65,"n_cols":20,"rows_kept":65,"cut":false,"hidden":false,"merged":[[0,5,0,9],[1,5,1,9],[2,5,2,9],[3,5,3,9],[4,5,4,9],[10,13,10,14],[21,12,21,13],[20,12,20,14],[17,6,17,7],[16,8,16,9],[17,8,17,9],[15,8,15,9],[0,19,4,21],[5,0,5,6],[42,13,43,13],[42,16,43,16],[42,14,43,14],[42,15,43,15],[42,17,43,17],[42,18,43,18],[19,0,19,9],[20,0,20,1],[21,0,21,1],[20,2,20,4],[20,5,20,7],[21,5,21,7],[20,8,20,9],[5,7,5,9],[21,8,21,9],[31,0,31,1],[16,3,16,5],[17,3,17,5],[16,6,16,7],[24,12,24,13],[12,11,12,12],[29,0,29,3],[58,0,58,9],[44,0,44,1],[44,3,44,4],[44,6,44,8],[46,0,46,9],[45,0,45,1],[45,3,45,4],[45,6,45,8],[30,0,30,9],[35,0,35,1],[32,0,32,1],[36,0,36,1],[37,0,37,1],[35,3,35,4],[36,3,36,4],[37,3,37,4],[35,6,35,8],[36,6,36,8],[37,6,37,8],[43,6,43,8],[47,0,47,1],[47,3,47,4],[48,4,48,5],[48,7,48,9],[29,5,29,6],[29,7,29,8],[22,0,22,9],[23,0,23,3],[23,5,23,8],[59,0,59,9],[51,0,51,9],[52,0,52,1],[53,0,53,1],[52,3,52,4],[53,3,53,4],[52,6,52,8],[53,6,53,8],[56,0,56,9],[57,0,57,9],[54,0,54,9],[55,0,55,9],[47,6,47,8],[33,0,33,1],[40,0,40,9],[38,0,38,1],[38,3,38,4],[38,6,38,8],[28,0,28,3],[9,0,10,1],[12,0,12,1],[10,5,10,6],[11,5,11,6],[10,7,10,9],[11,7,11,9],[10,2,10,4],[11,2,11,4],[6,0,6,9],[7,0,7,1],[8,0,8,1],[7,5,7,6],[8,5,8,6],[9,5,9,6],[7,7,7,9],[8,7,8,9],[9,7,9,9],[7,2,7,4],[8,2,8,4],[9,2,9,4],[12,5,12,6],[11,0,11,1],[12,2,12,4],[12,7,12,9],[26,0,26,3],[24,5,24,8],[25,5,25,8],[26,5,26,8],[18,0,18,1],[18,4,18,9],[18,2,18,3],[16,0,16,2],[17,0,17,2],[15,0,15,2],[14,8,14,9],[14,6,14,7],[14,3,14,5],[14,0,14,2],[15,3,15,5],[15,6,15,7],[21,2,21,3],[25,0,25,3],[24,0,24,3],[33,7,33,8],[31,3,31,5],[61,2,63,7],[61,0,63,1],[61,8,63,9],[0,0,4,4],[32,3,32,5],[33,3,33,5],[32,7,32,8],[31,7,31,8],[39,0,39,1],[39,3,39,4],[39,6,39,8],[60,0,60,9],[41,4,41,5],[41,0,41,3],[41,6,41,9],[34,0,34,9],[49,0,49,9],[50,0,50,9],[42,0,42,9],[43,0,43,1],[43,3,43,4],[13,2,13,3]]}
["Cdler votre logo dans cette section",null,null,null,null,{"$f":"Menu!K9","v":0},null,null,null,null,null,null,null,null,null,null,null,null,null,"Pour mettre votre logo sur le plan de levage copier le dans powerpoit et faire un copier coller dans le coin superieur gauche de la feuille."]
[null,null,null,null,null,{"$f":"Menu!K10","v":0}]
[null,null,null,null,null,{"$f":"Menu!K11","v":0}]
[null,null,null,null,null,{"$f":"\"Contact - \"&Menu!K12","v":"Contact - "}]
[null,null,null,null,null,{"$f":"Menu!K13","v":0}]
["Plan de Levage",null,null,null,null,null,null,"Couleur sont les Entrees"]
["Information Projet "]
["Nom du Site",null,{"$f":"Menu!E12","v":0},null,null,"Date",null,{"$f":"Menu!E9","v":"00:00:00"}]
["# Site",null,{"$f":"Menu!E13","v":0},null,null,"Client",null,{"$f":"Menu!E10","v":0},null,null,null,null,null,null,null,"Class I"]
["Adresse du Site",null,{"$f":"Menu!E14","v":0},null,null,"Projet de Client",null,{"$f":"Menu!E11","v":0},null,null,null,null,null,null,null,"Class II"]
[null,null,{"$f":"Menu!E15","v":0},null,null,"Latitude",null,{"$f":"Menu!E16&\" Deg \"&Menu!F16&\" Min \"&Menu!G16&\" Sec\"","v":"33 Deg 30 Min 14.08 Sec"},null,null,null,null,null,"Engr May Be Req'd",null,"Class III"]
["# Projet",null,{"$f":"Menu!K15","v":0},null,null,"Longitude",null,{"$f":"Menu!E17&\" Deg \"&Menu!F17&\" Min \"&Menu!G17&\" Sec\"","v":"-86 Deg 49 Min 18.44 Sec"},null,null,null,null,null,"E27",{"$f":"IF(E27=\"X\",1,0)","v":0},"Class IV"]
["Classe de Levage",null,{"$f":"IF(Menu!E18=\"Oui\",\"Class IV\",IF(M20>0,\"Class IV\",M24))","v":"Class I"},null,null,"Max. Load (lbs)",null,{"$f":"Menu!K16","v":200},null,null,null,"Engr Req'd",null,"E24",{"$f":"IF(E24=\"X\",1,0)","v":0}]
[null,null,null,null,"Lbs.",null,null,null,null,null,null,null,{"$f":"IF(E31=\"X\",1,0)","v":0}]
["Personne Responsable",null,null,"Nom",null,null,"Compagnie",null,"Telephone",null," ","E26",{"$f":"IF(E26=\"X\",1,0)","v":0},"E29",{"$f":"IF(E29=\"X\",1,0)","v":0},"Monopole"]
["Monteur Certifie",null,null,{"$f":"Menu!K14","v":0},null,null,{"$f":"Menu!K9","v":0},null,{"$f":"F5","v":0},null,null,null,null,"E30",{"$f":"IF(E30=\"X\",1,0)","v":0},"Autoportante"]
[{"$f":"\"Personnel Qualifie \"&M25","v":"Personnel Qualifie Non requis"},null,null,null,null,null,null,null,null,null,null,"G33",{"$f":"IF(G33=\"X\",1,0)","v":0},"J26",{"$f":"IF(J26=\"X\",1,0)","v":0},"Haubannée"]
[{"$f":"\"Ingenieur Qualifie \"&M21","v":"Ingenieur Qualifie Non requis"},null,null,null,null,null,null,null,null,null,null,"J48",{"$f":"IF(J48=\"X\",1,0)","v":0},"J27",{"$f":"IF(J27=\"X\",1,0)","v":0},"Toiture"]
["Types de Tour",null,"Autoportante",null,null,null,null,null,null,null,null,"H13",{"$f":"IF(H13>2000,1,0)","v":0},"G32",{"$f":"IF(G32=\"X\",1,0)","v":0},"Autre"]
["Donnees sur la Structure",null,null,null,null,null,null,null,null,null,null,"SUM",{"$f":"SUM(M15:M19)","v":0},"SUM",{"$f":"SUM(O12:O19)","v":0}]
["Fabricant",null,null,null,null,"Hauteur (AGL) pied",null,null,null,null,null,"Engr",{"$f":"IF(Menu!E18=\"Oui\",\"Champs obligatoires\",IF(M24=\"Class IV\",\"Champs obligatoires\",IF(M20>0,\"Champs obligatoires\",IF(O20>0,\"Peut être requis\",\"Non requis\"))))","v":"Non requis"},null,null,"X"]
["Largeur @ base",null,null,null,"(pieds)","Longueur type section (pieds)"]
["Nature du Trava'l (cocher)",null,null,null,null,null,null,null,null,null,null,null,null,null,null,"Type I"]
[{"$f":"\"Novelle Structure \"&IF(M21=\"Req'd\",\"\",IF(E24=\"X\",\"- Engr May Be Req'd\",\"\"))","v":"Novelle Structure "},null,null,null,null,"Ajout retrait antennes",null,null,null,null,null,"Weight",{"$f":"IF(H13<351,\"Class I\",IF(H13<501,\"Class II\",IF(H13<2001,\"Class III\",\"Class IV\")))","v":"Class I"},null,null,"Type II"]
["Ajout / Retrait cable",null,null,null,null,"Ajout retrait support",null,null,null,null,null,"Person",{"$f":"IF(Menu!E18=\"Oui\",\"Champs obligatoires\",IF(M24=\"Class IV\",\"Champs obligatoires\",IF(M24=\"Class III\",\"Champs obligatoires\",IF(M20>0,\"Req'd\",IF(O20>0,\"Peut être requis\",\"Non requis\")))))","v":"Non requis"},null,null,"Type III"]
["Remplacer membrure",null,null,null,null,{"$f":"\"Ajout renforcement \"&IF(M21=\"Req'd\",\"\",IF(J26=\"X\",\"- Engr May Be Req'd\",\"\"))","v":"Ajout renforcement "},null,null,null,null,null,null,null,null,null,"Other"]
[{"$f":"\"Remplacer Haubans\"&IF(M21=\"Req'd\",\"\",IF(E27=\"X\",\"- Engr May Be Req'd\",\"\"))","v":"Remplacer Haubans"},null,null,null,null,{"$f":"\"Coupage soudage \"&IF(M21=\"Req'd\",\"\",IF(J27=\"X\",\"- Engr May Be Req'd\",\"\"))","v":"Coupage soudage "}]
["Nouvelles Foundations",null,null,null,null,"Installer supports/antennes lignes",null,null,null,null,null,null,{"$f":"IF(C13=\"Class IV\",\"FALSE\",IF(E24=\"\",\"FALSE\",\"TRUE\"))","v":"FALSE"}]
[{"$f":"\"Modifier Foundations \"&IF(M21=\"Req'd\",\"\",IF(E29=\"X\",\"- Engr May Be Req'd\",\"\"))","v":"Modifier Foundations "},null,null,null,null,"Enlever supports/antennes lignes"]
[{"$f":"\"Changer boulons \"&IF(M21=\"Req'd\",\"\",IF(E30=\"X\",\"- Engr May Be Req'd\",\"\"))","v":"Changer boulons "},null,null,null,null,"Autres"]
["Equipements Privcipaux"]
["Cabestan Levage",null,null,{"$f":"\"Gin Pole\"&IF(M21=\"Req'd\",\"\",IF(G32=\"X\",\"/ Engr May Be Req'd\",\"\"))","v":"Gin Pole"},null,null,null,"(Autre Equip)"]
["Cabestan cable retenu",null,null,"Grue",null,null,null,"(Autre Equip)"]
["Cabestan hauban",null,null,"Cabestan",null,null,null,"(Autre Equip)"]
["Gréage"]
["Tire-fort",null,null,"Goupilles",null,null,"Poulies"]
["Transit/Theodolite",null,null,"Crochets",null,null,"Boule levage"]
["Tensiométre",null,null,"Cordage de retenu",null,null,{"$f":"IF(J37=\"X\",\"Ball Weight-lbs\",\"\")","v":""}]
["Cordage charge",null,null,"Elingue acier",null,null,"Boule contre poids"]
["Preforms",null,null,"Elingue synthetique",null,null,{"$f":"IF(J39=\"X\",\"Ball Weight-lbs\",\"\")","v":""}]
["Methode de Levage"]
[null,null,null,null,"Type I"]
["Gréage et CapacitÉ",null,null,null,null,null,null,null,null,null,null,null,null,"Crown\nBlock Load","Crown Vertical","Crown Horizontal","Heel\nBlock Load","Tag Load","Hoist Load"]
["Cable d'acier",null,null,"KernMantle Cordage",null,null,"Cordage double tressage",null,null,null,null,null,"Type"]
["Charge maximale",null,null,"KernMantle charge  ",null,null,"Cordage double tressage charge",null,null,null,null,null,"Type 1",{"$f":"'Type 1'!J22","v":715.93396153062133},{"$f":"'Type 1'!Q23","v":711.39923507496133},{"$f":"'Type 1'!Q21","v":80.452256697305131},null,{"$f":"'Type 1'!P39","v":163.93273263263316},{"$f":"'Type 1'!M34","v":358.3467627408736}]
["Poulie",null,null,"Elingues",null,null,"Goupille",null,null,null,null,null,"Type 2",{"$f":"'Type 2'!G21","v":400},{"$f":"'Type 2'!K19","v":400},{"$f":"'Type 2'!K17","v":115},null,null,{"$f":"'Type 2'!F36","v":200}]
["Type de Levage",null,null,null,null,null,null,null,null,null,null,null,"Type 3",{"$f":"'Type 3'!G20","v":488.02526032036855},{"$f":"'Type 3'!M22","v":487.41939009966291},{"$f":"'Type 3'!M20","v":24.310344827586206},{"$f":"'Type 3'!E46","v":345.46274173885445},{"$f":"'Type 3'!J38","v":49.486362958961365},{"$f":"'Type 3'!F43","v":244.3159418238009}]
["Regulier",null,null,"Personnel",null,null,"Levage Specialise",null,null,null,null,null,"Other"]
[{"$f":"H8","v":"00:00:00"},"Job No.",{"$f":"C12","v":0},"Site: ",{"$f":"C8","v":0},null,"Client:",{"$f":"H9","v":0}]
[" Nature / Description du Travail"]
[]
["Charges à Partir des Formulaires de Calcul"]
["Poids brut de la charge",null,{"$f":"H13","v":200},"Charge cable retenu",null,{"$f":"IF(E42=\"Type I\",R45,IF(E42=\"Type III\",R47,\"\"))","v":163.93273263263316},"Charge verticale poulie tête",null,null,{"$f":"IF(E42=\"Type I\",O45,IF(E42=\"Type II\",O46,IF(E42=\"Type III\",O47,\"\")))","v":711.39923507496133}]
[{"$f":"IF(E42=\"Type III\",\"Heel Block Load\",\"\")","v":""},null,{"$f":"IF(E42=\"Type III\",'Type 3'!E46,\"\")","v":""},"Charge cabestan",null,{"$f":"IF(E42=\"Type I\",S45,IF(E42=\"Type II\",S46,IF(E42=\"Type III\",S47,\"\")))","v":358.3467627408736},"Charge horizontale poulie de tête",null,null,{"$f":"IF(E42=\"Type I\",P45,IF(E42=\"Type II\",P46,IF(E42=\"Type III\",P47,\"\")))","v":80.452256697305131}]
["Général Information"]
[]
[" Séquences de Travail"]
[]
[" Procedure et Séquences des Renforcements"]
[]
["Signature du Monteur Certifie"]
[null,null," "]
[]
[]
[{"$f":"Credits!B11","v":"French Version 1.0 - January 11, 2018"}]

{"sheet":"Site Layout","index":2,"n_rows":0,"n_cols":0,"rows_kept":0,"cut":false,"hidden":true,"merged":[]}

{"sheet":"Type 1","index":3,"n_rows":57,"n_cols":35,"rows_kept":57,"cut":false,"hidden":false,"merged":[[4,10,4,17],[6,17,6,18],[53,1,55,23],[21,9,21,10],[39,8,39,9],[35,2,37,2],[41,12,41,13],[48,21,48,22],[44,21,44,22],[39,21,39,22],[42,12,42,13],[47,11,47,12],[38,15,38,16],[25,13,25,14],[7,6,7,12],[8,6,8,12],[9,6,9,12],[6,19,6,22],[6,12,6,16],[18,14,18,20],[19,14,19,21],[12,13,12,19],[10,6,10,12],[11,6,11,12],[12,6,12,12],[20,14,20,15],[21,14,21,20],[22,9,23,12],[13,16,16,20],[14,6,14,12],[13,6,13,12],[51,1,52,23],[20,16,20,18],[36,7,36,8],[33,12,33,13],[27,14,29,19],[33,15,36,20],[22,16,22,18],[25,11,25,12],[22,22,24,22],[45,11,45,12],[50,1,50,4],[39,19,39,20],[23,14,23,21],[47,17,47,18],[44,18,44,19],[34,12,35,14]]}
[]
[]
[null,"Contact",null,null,"Gordon Lyman",null,null,null,null,null,null,null,null,null,null,null,null,null,null,null,null,null,"Bill Griswold"]
[null,"Email",null,"gl@esystemtraining.com ",null,null,null,null,null,null,null,null,null,null,null,null,null,null,null,null,null,null,"BillGriswold@Live.com"]
[null,"Mobile No",null,null," (210) 410-2091",null,null,null,null,null,"Poulie de Tête Avec Cable de Retenu",null,null,null,null,null,null,null,null,null,null,null,"(704) 906-9113"]
[]
[null,null,null,null,null,null,"Information Projet",null,null,null,null,null,"Note: Champs en ",null,null,null,null,"Bleu",null," sont les entrées",null,null,null,null,null,null,null,null,null,null,null,null,null,null,"Tour Monopole"]
[null,"Date:",null,null,null,null,{"$f":"Menu!E9","v":"00:00:00"},null,null,null,null,null,null,null,null,null,null,null,null,null,null,null,null,null,null,null,null,null,null,null,null,null,null,null,"Tour Autoportante"]
[null,"Entrepreneur",null,null,null,null,{"$f":"Menu!K9","v":0},null,null,null,null,null,null,null,null,null,null,null,null,null,null,null,null,null,null,null,null,null,null,null,null,null,null,null,"Tour Haubannée"]
[null,"# Projet",null,null,null,null,{"$f":"Menu!K15","v":0}]
[null,"Monteur certifie",null,null,null,null,{"$f":"Menu!K14","v":0}]
[null,"Client",null,null,null,null,{"$f":"Menu!E10","v":0}]
[null,"Nom du site",null,null,null,null,{"$f":"Menu!E12","v":0}]
[null,"# Site",null,null,null,null,{"$f":"Menu!E13","v":0},null,null,null,null,null,null,null,null,null,{"$f":"IF(AB21>AB34,\"WARNING - LOAD ANGLE EXCEEDS MAXIMUM!\",\"\")","v":""}]
[null,"Type de tour",null,null,null,null,"Tour Autoportante"]
[]
[]
[]
[null,null,null,null,null,null,null,null,null,null,null,null,null,null,"Notes pour Lingénieur",null,null,null,null,null,null,null,null,null,null,null,{"$f":"IF(U16=\"Angle\",TRUE,FALSE)","v":false}]
[null,null,null,null,null,null,null,null,{"$f":"Menu!K17","v":"Block 3 - 5000"},null,null,null,null,null,"Charge horizontale maximale sur"]
[null,null,null,null,null,null,null,null,null,null,null,null,null,null,"Tour ",null,{"$f":"AB27+AB29","v":80.452256697305131},null,null,"lbs.",null,null,null,null,null,null,"Alpha = ",{"$f":"ATAN(H37/(W23-C36))*180/PI()","v":9.0902769208223226}]
[null,null,null,null,null,null,null,null,null,{"$f":"AB33","v":715.93396153062133},null,"lbs.",null,null,"Charge verticale maximale sur",null,null,null,null,null,null,null,"ft.",null,null,null,"Beta = ",{"$f":"ATAN(W23/L46)*180/PI()","v":86.185925165709648}]
[null,null,null,null,null,null,null,null,null,{"$f":"IF(J22>Menu!S15,\"Capacité poulie excédée\",\"\")","v":""},null,null,null,null,null,"Tour ",{"$f":"AB26+AB28","v":711.39923507496133},null,null,"lbs.",null,null,300,null,null,null,"Gamma = ",{"$f":"ATAN(C36/(L48-H37))*180/PI()","v":69.796384831674871}]
[null,null,null,null,null,null,null,null,null,null,null,null,null,null,"Charge excluant limpact"]
[null,null,null,null,null,null,null,null,null,null,null,null,null,null,null,null,{"$f":"IF(U16=\"Angle\",\"Degrees\",\"\")","v":""}]
[null,null,null,null,null,null,null,null,null,null,null,{"$f":"AB21","v":9.0902769208223226},null,"Degrés",null,null,{"$f":"IF(U16=\"Distance\",\"Degrees\",\"\")","v":""},null,null,null,null,null,null,null,null,null,"A =",{"$f":"I40/(1-TAN(AB21*PI()/180)*TAN(AB23*PI()/180))","v":353.84615384615392}]
[null,null,null,null,null,null,null,null,null,null,null,null,null,null,null,null,null,null,null,null,null,null,null,null,null,null,"B =",{"$f":"AB26*TAN(AB21*PI()/180)","v":56.615384615384627}]
[null,null,null,null,null,null,null,null,null,null,null,null,null,null,{"$f":"IF(L26>10,\"Attention, Angle de charge excède 10 degrés\",\"\")","v":""},null,null,null,null,null,null,null,null,null,null,null,"C =",{"$f":"AB31*SIN(AB22*PI()/180)","v":357.55308122880734}]
[null,null,null,null,null,null,null,null,null,null,null,null,null,null,null,null,null,null,null,null,null,null,null,null,null,null,"D =",{"$f":"AB31*COS(AB22*PI()/180)","v":23.836872081920497}]
[null,null,null,null,null,null,null,null,null,null,null,null,null,null,null,null,null,null,null,null,null,null,null,null,null,null,"E =",{"$f":"AB27*TAN(T40*PI()/180)","v":153.84615384615392}]
[null,null,null,null,null,null,null,null,null,null,null,null,null,null,null,null,null,null,null,null,null,null,null,null,null,null,"Line Load =",{"$f":"SQRT((AB26^2)+(AB27^2))","v":358.3467627408736}]
[null,null,null,null,null,null,null,null,null,null,null,null,null,null,null,null,null,null,null,null,null,null,null,null,null,null,"Tag Load =",{"$f":"SQRT((AB30^2)+(AB27^2))","v":163.93273263263316}]
[null,null,null,null,null,null,null,null,null,null,null,null,{"$f":"\"Cabestan est \"&Menu!K19","v":"Cabestan est Hoist 4 - 5000"},null,null,null,null,null,null,null,null,null,null,null,null,null,"Crown Block",{"$f":"SQRT(((AB27+AB29)^2)+((AB26+AB28)^2))","v":715.93396153062133}]
[null,null,null,null,null,null,null,null,null,null,null,null,{"$f":"AB31","v":358.3467627408736},null,"lbs.",{"$f":"IF(T40>70,\"Attention, Angle du tag excède 70 degrés\",\"\")","v":""},null,null,null,null,null,null,null,null,null,null,"Error Angle",{"$f":"ATAN(L48/W23)*180/PI()","v":18.43494882292201}]
[null,null,null,null,null,null,null,null,null,null,null,null,{"$f":"IF(M34>Menu!S17,\"Capacity Exceeded\",\"\")","v":""}]
[null,null,250]
[null,null,null,null,null,null,null,8]
[]
[null,null,null,null,null,null,null,null,null,null,null,null,null,null,null,{"$f":"AB32","v":163.93273263263316}]
[null,null,null,null,null,null,null,null,{"$f":"Menu!K16","v":200},null,"lbs.",null,null,null,null,null,null,null,null,{"$f":"AB23","v":69.796384831674871},null,"Degrés"]
[]
[null,null,null,null,null,null,null,null,null,null,null,null,{"$f":"AB22","v":86.185925165709648}]
[null,null,null,null,null,null,null,null,null,null,null,null,"Degrés"]
[]
[null,null,null,null,null,null,null,null,null,null,null,null,null,null,null,null,null,null,{"$f":"AB29","v":23.836872081920497},null,null,{"$f":"AB27","v":56.615384615384627},null,"lbs."]
[null,null,null,null,null,null,null,null,null,null,null,20]
[]
[null,null,null,null,null,null,null,null,null,null,null,100,null,null,null,null,null,{"$f":"AB28","v":357.55308122880734}]
[null,null,null,null,null,null,null,null,null,null,null,null,null,null,null,null,null,null,null,null,null,{"$f":"AB30","v":153.84615384615392},null,"lbs."]
[]
[null,"Notes de chantier"]
[]
[]
[null,"Avertissement: Les informations et les calculs par ce document ont ete developpes par une source fiable conformement aux normes de l'industrie et sont consideres comme correctes. Cette information ne devrait pas etre invoquee pour une application specifique sans l'examen par professionnel competent incluant la verification de son exactitude, la pertinence et l'applicabilite. Ce documentpeutne pas etre adaptable a' toutes les situations et doit etre utilise a vois risques et perils"]
[]
[]
[null,{"$f":"Credits!B11","v":"French Version 1.0 - January 11, 2018"},null,null,null,null,null,null,null,null,null,null,null,null,null,null,null,null,null,null,null,null,null,"Developed by Griswold Tower Software, PC"]

{"sheet":"Type 2","index":4,"n_rows":55,"n_cols":23,"rows_kept":55,"cut":false,"hidden":false,"merged":[[49,1,51,11],[52,1,53,11],[12,7,12,10],[12,4,12,6],[46,3,46,7],[20,8,22,8],[18,8,19,8],[23,8,35,8],[34,6,40,7],[21,5,22,6],[39,4,40,5],[41,4,41,7],[14,9,14,11],[14,4,14,6],[19,9,19,11],[15,8,15,11],[0,1,0,7],[1,1,1,7],[13,4,13,6],[3,9,3,11],[4,9,4,11],[7,4,7,6],[9,4,9,6],[10,4,10,6],[11,4,11,6],[8,4,8,6],[2,9,2,11],[2,2,2,4],[3,2,3,4],[4,2,4,4],[9,7,11,10],[4,5,4,8]]}
[]
[]
[null,"Contact","Gordon Lyman",null,null,null,null,null,null,"Bill Griswold"]
[null,"Email","gl@esystemtraining.com ",null,null,null,null,null,null,"BillGriswold@Live.com"]
[null,"Mobile No"," (210) 410-2091",null,null,"Poulie de tête avec Messager",null,null,null,"(704) 906-9113"]
[]
[null,null,null,null,"Information Projet:",null,null,"Note champs en ",null,"Bleu"," sont les entrees.",null,null,null,null,null,null,null,null,null,null,null,"Tour Monopole"]
[null,"Date:",null,null,{"$f":"Menu!E9","v":"00:00:00"},null,null,null,null,null,null,null,null,null,null,null,null,null,null,null,null,null,"Tour Autoportante"]
[null,"Entrepreur:",null,null,{"$f":"Menu!K9","v":0},null,null,null,null,null,null,null,null,null,null,null,null,null,null,null,null,null,"Tour Haubannée"]
[null,"# Projet:",null,null,{"$f":"Menu!K15","v":0}]
[null,"Monteur Certifie:",null,null,{"$f":"Menu!K14","v":0}]
[null,"Client:",null,null,{"$f":"Menu!E10","v":0}]
[null,"Nom du Site:",null,null,{"$f":"Menu!E12","v":0}]
[null,"# Site:",null,null,{"$f":"Menu!E13","v":0},null,null,null,null,null,null,null,null,null,null,null,null,null,null,"Y = ",100]
[null,"Type de Tour:",null,null,"Tour Haubannée",null,null,null,null,"Notes pour L'ingenieur:",null,null,null,null,null,null,null,null,null,"αᵒ","X1","Y2"]
[null,null,null,null,null,null,null,null,"       Charge Horizontale maximale Tour",null,null,null,null,null,null,null,null,null,null,23.555,39.234999999999999,10]
[null,null,null,null,null,null,null,null,null,"Tour",{"$f":"(2*ROUND((SIN(F26*PI()/180)*F36),1))","v":115},null,null,null,null,null,null,null,null,21.443999999999999,31.422999999999998,20]
[null,null,null,null,null,null,null,null,null,"Charges horizontale maximale tour",null,null,null,null,null,"α = ",13.282,null,null,19.794,25.192,30]
[null,null,null,null,{"$f":"Menu!K17","v":"Block 3 - 5000"},null,null,null," pi","Tour",{"$f":"2*F36","v":400},null,null,null,null,"Y = ",100,null,null,18.434999999999999,20,40]
[null,null,null,null,null,null,null,null,null,"Charges d'impact exclus",null,null,null,null,null,"X =",50,null,null,17.280999999999999,15.555999999999999,50]
[null,null,null,null,null,null,{"$f":"INT(2*F36)","v":400},null,100,null,null,null,null,null,null,"% of Y =",100,null,null,16.280999999999999,11.683999999999999,60]
[null,null,null,null,null,{"$f":"IF(G21>Menu!S15,\"Capacité poulie excédée\",\"\")","v":""},null,null,null,null,null,null,null,null,null,"= 0?",{"$f":"(-Q20) + (Q19*Q21/100)*(TAN(2*Q18*PI()/180)) + (Q19*(100-Q21)/100)*(TAN(Q18*PI()/180))","v":-2.2932915923732367E-3},null,null,15.401999999999999,8.2650000000000006,70]
[null,null,null,null,null,null,null,null,null,null,null,null,null,null,null,null,null,null,null,14.62,5.2160000000000002,80]
[null,null,null,null,null,null,null,null,"Hauteur attache sommet =",null,null,null,null,null,null,"X1 = ",{"$f":"Q20 - (Q25*TAN(Q18*PI()/90))","v":2.2932915923732367E-3},null,null,13.917999999999999,2.476,90]
[null,null,null,null,null,{"$f":"\"Angle levage max =  \"","v":"Angle levage max =  "},null,{"$f":"ROUND(ATAN(F45/I21)*180/PI(),1)&\" Deg\"","v":"16.7 Deg"},null,null,null,null,null,null,null,"Y2 =",{"$f":"(Q21/100)*Q19","v":100},null,null,13.282,2E-3,100]
[null,null,null,null,null,{"$f":"ATAN(F45/I21)*180/PI()","v":16.699244233993621}]
[]
[]
[]
[]
[]
[]
[]
[]
[null,null,null,null,null,null,{"$f":"\"Charge cabestan = \"&INT(SQRT((F36^2) + (K42^2)))&\" lbs\"","v":"Charge cabestan = 208 lbs"}]
[null,null,null,null,null,{"$f":"Menu!K16","v":200}]
[]
[]
[]
[null,null,null,null,{"$f":"IF(F36>Menu!S17,\"Hoist Capacity Exceeded\",\"\")","v":""}]
[]
[null,null,null,null,{"$f":"\"Cabestan est \"&Menu!K19","v":"Cabestan est Hoist 4 - 5000"},null,null,null,null,null,{"$f":"K17/2","v":57.5}]
[]
[]
[null,null,null,null,null,30,"pi"]
[]
[null,null,null,"Distance Cabestan"]
[null,null,null,null,null,null,null,null,null,null,{"$f":"F36","v":200}]
[null,"Notes de chantier"]
[]
[]
[]
[null,"Avertissement:  Les informations et les calculs par ce document ont ete developpes par une source fiable conformement aux normes de l'industrie et sont consideres comme correctes. Cette information ne devrait pas etre invoquee pour une application specifique sans l'examen par professionnel competent incluant la verification de son exactitude, la pertinence et l'applicabilite. Ce documentpeutne pas etre adaptable a' toutes les situations et doit etre utilise a vois risques et perils."]
[]
[null,{"$f":"Credits!B11","v":"French Version 1.0 - January 11, 2018"},null,null,null,null,null,null,null,null,null,"Developed by Griswold Tower Software, PC"]

{"sheet":"Type 3","index":5,"n_rows":57,"n_cols":25,"rows_kept":57,"cut":false,"hidden":false,"merged":[[40,12,41,13],[46,12,47,13],[51,1,52,13],[53,1,55,13],[0,1,0,7],[1,1,1,7],[2,2,2,4],[3,2,3,4],[3,11,3,13],[2,11,2,13],[4,11,4,13],[25,10,26,10],[17,11,17,13],[14,8,16,10],[27,6,29,9],[4,2,4,4],[32,11,35,12],[19,6,19,7],[24,6,24,7],[12,4,12,6],[13,4,13,6],[12,7,12,11],[20,4,21,5],[20,11,20,13],[22,11,22,13],[39,4,40,5],[4,5,4,10],[45,8,46,9],[47,8,47,10],[7,4,7,6],[8,4,8,6],[9,4,9,6],[10,4,10,6],[11,4,11,6],[9,7,11,11],[18,11,18,13],[37,7,38,7],[47,6,47,7],[25,6,25,7],[14,4,14,6],[21,6,23,9]]}
[]
[]
[null,"Contact","Gordon Lyman",null,null,null,null,null,null,null,null,"Bill Griswold"]
[null,"Email","gl@esystemtraining.com ",null,null,null,null,null,null,null,null,"BillGriswold@Live.com"]
[null,"Mobile No"," (210) 410-2091",null,null,"Poulie de tête et de basse avec Tag",null,null,null,null,null,"(704) 906-9113"]
[]
[null,null,null,null,"Information Projet:",null,null,null,"Note: Champs en","Bleu","sont les entrées.",null,null,null,null,null,null,null,null,null,null,null,null,null,"Tour Monopole"]
[null,"Date:",null,null,{"$f":"Menu!E9","v":"00:00:00"},null,null,null,null,null,null,null,null,null,null,null,null,null,null,null,null,null,null,null,"Tour Autoportante"]
[null,"Entrepreneur:",null,null,{"$f":"Menu!K9","v":0},null,null,null,null,null,null,null,null,null,null,null,null,null,null,null,null,null,null,null,"Tour Haubannée"]
[null,"# projet:",null,null,{"$f":"Menu!K15","v":0}]
[null,"Monteur certifie:",null,null,{"$f":"Menu!K14","v":0}]
[null,"Client:",null,null,{"$f":"Menu!E10","v":0},null,null,null,null,null,null,null,null,null,null,null,"Distance"]
[null,"Nom du site:",null,null,{"$f":"Menu!E12","v":0},null,null,null,null,null,null,null,null,null,null,null,"Angle"]
[null,"# Site:",null,null,{"$f":"Menu!E13","v":0},null,null,null,null,null,null,null,null,null,null,null,{"$f":"L16","v":"Distance"}]
[null,"Type de Tour:",null,null,"Tour Haubannée",null,null,null,"Choisir angle de levageou ecartement"]
[null,null,null,null,null,null,null,null,null,null,null,"Distance",{"$f":"+IF(Q14=\"Angle\",\"Degrees\",\"pi\")","v":"pi"}]
[null,null,null,null,null,null,null,null,null,null,null,null,null,null,null,null,{"$f":"IF(Q14=\"Distance\",TRUE,FALSE)","v":true}]
[null,null,null,null,null,{"$f":"Menu!K17","v":"Block 3 - 5000"},null,null,null,null,null,"Notes pour L'ingénieur:"]
[null,null,null,null,null,null,null,null,null,null,null,"Charge horizontale maximale tour",null,null,null,null,{"$f":"IF(Q14=\"Angle\",TRUE,FALSE)","v":false}]
[null,null,null,null,null,null,{"$f":"R30","v":488.02526032036855},null,null,null,null,"Tour",{"$f":"R25","v":24.310344827586206},"lbs."]
[null,null,null,null,{"$f":"IF(G20>Menu!S15,\"Capacité poulie excédée\",\"\")","v":""},null,null,null,null,null,null,"Charge verticale maximale tour",null,null,null,null,"Alpha = ",{"$f":"IF(Q14=\"Angle\",G25,G26)","v":5.710593137499643}]
[null,null,null,null,null,null,{"$f":"IF(Q14=\"Angle\",IF(G25>10,\"Attention, Angle de charge excède 10 degrés\",\"\"),IF(G26>10,\"Attention, Angle de charge excède 10 degrés\",\"\"))","v":""},null,null,null,null,"Tour",{"$f":"R24+R28","v":487.41939009966291},"lbs.",null,null,"Standoff = ",{"$f":"IF(Q14=\"Angle\",E32,E31)","v":5}]
[null,null,null,null,null,null,null,null,null,null,null,"Charges d'impact exclus",null,null,null,null,"Beta = ",{"$f":"ATAN(H38/(G48-R22))*180/PI()","v":60.577001718456501}]
[null,null,null,null,null,null,null,null,null,null,null,null,null,null,null,null,"A =",{"$f":"F36/(1-TAN(R21*PI()/180)*TAN(R23*PI()/180))","v":243.10344827586204}]
[null,null,null,null,null,null,5,null,{"$f":"IF(Q14=\"Angle\",\"Degrés\",\"\")","v":""},null,null,null,null,null,null,null,"B =",{"$f":"R24*TAN(R21*PI()/180)","v":24.310344827586206}]
[null,null,null,null,null,null,{"$f":"ATAN((E31)/(K26-H38))*180/PI()","v":5.710593137499643},null,{"$f":"IF(Q14=\"Distance\",\"Degrés\",\"\")","v":"Degrés"},null,100,null,null,null,null,null,"C =",{"$f":"R25*TAN(R23*PI()/180)","v":43.103448275862057}]
[null,null,null,null,null,null,null,null,null,null,null,null,null,null,null,null,"D =",{"$f":"R25","v":24.310344827586206}]
[null,null,null,null,null,null,{"$f":"IF(R21>R31,\"Attention – Angle maximum de charge excédé\",\"\")","v":""},null,null,null,null,null,null,null,null,null,"Line Load =",{"$f":"SQRT((R24^2)+(R25^2))","v":244.3159418238009}]
[null,null,null,null,null,null,null,null,null,null,null,null,null,null,null,null,"Tag Load =",{"$f":"SQRT((R26^2)+(R27^2))","v":49.486362958961365}]
[null,null,null,null,"Écartement",null,null,null,null,null,null,null,null,null,null,null,"Crown Block",{"$f":"SQRT((R25^2)+((R28+R24)^2))","v":488.02526032036855}]
[null,null,null,null,5,null,null,null,null,null,null,null,null,null,null,null,"Error Angle",{"$f":"ATAN(G48/K26)*180/PI()","v":18.366166407568929}]
[null,null,null,null,{"$f":"(K26-H38)*TAN(G25*PI()/180)","v":4.3744331762962005}]
[null,null,null,null,null,null,null,null,null,null,null,{"$f":"IF(J42>70,\"Attention, Angle du tag excède 70 degrés\",\"\")","v":""}]
[]
[]
[null,null,null,null,null,{"$f":"Menu!K16","v":200},"lbs."]
[]
[null,null,null,null,null,{"$f":"F43","v":244.3159418238009},"lbs.",50,null,{"$f":"R29","v":49.486362958961365},"lbs.",null,"Cabestan Tag"]
[null,null,null,null,null,null,null,null,null,null,null,null,{"$f":"Menu!K20","v":"Hoist 4 - 5000"}]
[null,null,null,null,{"$f":"IF(E46>Menu!S16,\"Block Capacity Exceeded\",\"\")","v":""},null,null,null,null,null,null,null,{"$f":"IF(J38>Menu!S18,\"Capacity Exceeded\",\"\")","v":""}]
[null,null,null,null,null,null,null,null,null,null,null,null,"Charge Horizontale Tag "]
[null,null,null,null,null,null,null,null,null,{"$f":"R23","v":60.577001718456501}]
[null,null,null,null,null,{"$f":"R28","v":244.3159418238009},null,null,null,"Degrés",null,null,{"$f":"R27","v":24.310344827586206}]
[]
[]
[null,null,null,null,{"$f":"1.414*F43","v":345.46274173885445},null,null,null,{"$f":"Menu!K19","v":"Hoist 4 - 5000"},null,null,null,{"$f":"R26","v":43.103448275862057}]
[null,null,null,null,{"$f":"Menu!K18","v":"Block 3 - 5000"},null,null,null,null,null,null,null,"Charge VerticaleTag"]
[null,null,null,null,null,null,33.200000000000003,null,{"$f":"IF(F43>Menu!S17,\"Capacité excédée\",\"\")","v":""}]
[]
[]
[null,"Notes de chantier"]
[]
[]
[null,"Avertissement:  Les informations et les calculs par ce document ont ete developpes par une source fiable conformement aux normes de l'industrie et sont consideres comme correctes. Cette information ne devrait pas etre invoquee pour une application specifique sans l'examen par professionnel competent incluant la verification de son exactitude, la pertinence et l'applicabilite. Ce documentpeutne pas etre adaptable a' toutes les situations et doit etre utilise a vois risques et perils."]
[]
[]
[null,{"$f":"Credits!B11","v":"French Version 1.0 - January 11, 2018"},null,null,null,null,null,null,null,null,null,null,null,"Developed by Griswold Tower Software, PC"]

{"sheet":"Recherche Angle","index":6,"n_rows":57,"n_cols":25,"rows_kept":57,"cut":false,"hidden":false,"merged":[[0,1,0,7],[1,1,1,7],[2,2,2,4],[2,11,2,13],[3,2,3,4],[3,11,3,13],[12,4,12,6],[12,7,12,11],[13,4,13,6],[4,2,4,4],[4,11,4,13],[7,4,7,6],[8,4,8,6],[9,4,9,6],[10,4,10,6],[11,4,11,6],[4,5,4,9],[14,4,14,6],[53,1,55,13],[13,8,16,11],[24,10,26,10],[51,1,52,13],[24,6,24,7],[22,6,22,7]]}
[]
[]
[null,"Contact","Gordon Lyman",null,null,null,null,null,null,null,null,"Bill Griswold"]
[null,"Email","gl@esystemtraining.com ",null,null,null,null,null,null,null,null,"BillGriswold@Live.com"]
[null,"Mobile No"," (210) 410-2091",null,null,"Outil de recherche d'angles",null,null,null,null,null,"(704) 906-9113"]
[]
[null,null,null,null,"Information Projet:",null,null,null,"Note: Champs en","Bleu","sont les entrees.",null,null,null,null,null,null,null,null,null,null,null,null,null,"Tour Monopole"]
[null,"Date:",null,null,{"$f":"Menu!E9","v":"00:00:00"},null,null,null,null,null,null,null,null,null,null,null,null,null,null,null,null,null,null,null,"Tour Autoportante"]
[null,"Entrepreneur:",null,null,{"$f":"Menu!K9","v":0},null,null,null,null,null,null,null,null,null,null,null,null,null,null,null,null,null,null,null,"Tour Haubannée"]
[null,"# Projet:",null,null,{"$f":"Menu!K15","v":0}]
[null,"Monteur certifie:",null,null,{"$f":"Menu!K14","v":0}]
[null,"Client:",null,null,{"$f":"Menu!E10","v":0},null,null,null,null,null,null,null,null,null,null,null,"Distance"]
[null,"Nom du site:",null,null,{"$f":"Menu!E12","v":0},null,null,null,null,null,null,null,null,null,null,null,"Angle"]
[null,"# Site:",null,null,{"$f":"Menu!E13","v":0},null,null,null,{"$f":"IF(R21>R31,\"WARNING - LOAD ANGLE EXCEEDS MAXIMUM!\",\"\")","v":""}]
[null,"Type de tour:",null,null,"Tour Autoportante"]
[]
[null,null,null,null,null,null,null,null,null,null,null,null,null,null,null,null,{"$f":"IF(L16=\"Distance\",TRUE,FALSE)","v":false}]
[]
[null,null,null,null,null,null,null,null,null,null,null,null,null,null,null,null,{"$f":"IF(L16=\"Angle\",TRUE,FALSE)","v":false}]
[]
[null,null,null,null,null,null,null,null,null,null,null,null,null,null,null,null,"Alpha = ",{"$f":"IF(L16=\"Angle\",G25,F23)","v":9.4623222080256166}]
[null,null,null,null,null,null,null,null,null,null,null,null,null,null,null,null,"Standoff = ",{"$f":"IF(L16=\"Angle\",#REF!,E32)","v":0}]
[null,null,null,null,null,{"$f":"ATAN((F48)/(K25))*180/PI()","v":9.4623222080256166},"Degrés",null,null,null,null,null,null,null,null,null,"Beta = ",{"$f":"ATAN(H37/(F48-R22))*180/PI()","v":0}]
[null,null,null,null,null,null,null,null,null,null,null,null,null,null,null,null,"A =",{"$f":"F36/(1-TAN(R21*PI()/180)*TAN(R23*PI()/180))","v":0}]
[null,null,null,null,null,null,null,null,{"$f":"IF(L16=\"Angle\",\"Degrees\",\"\")","v":""},null,150,null,null,null,null,null,"B =",{"$f":"R24*TAN(R21*PI()/180)","v":0}]
[null,null,null,null,null,null,null,null,{"$f":"IF(L16=\"Distance\",\"Degrees\",\"\")","v":""},null,null,null,null,null,null,null,"C =",{"$f":"R25*TAN(R23*PI()/180)","v":0}]
[null,null,null,null,null,null,null,null,null,null,null,null,null,null,null,null,"D =",{"$f":"R25","v":0}]
[null,null,null,null,null,null,null,null,null,null,null,null,null,null,null,null,"Line Load =",{"$f":"SQRT((R24^2)+(R25^2))","v":0}]
[null,null,null,null,null,null,null,null,null,null,null,null,null,null,null,null,"Tag Load =",{"$f":"SQRT((R26^2)+(R27^2))","v":0}]
[null,null,null,null,null,null,null,null,null,null,null,null,null,null,null,null,"Crown Block",{"$f":"SQRT((R25^2)+((R28+R24)^2))","v":0}]
[null,null,null,null,null,null,null,null,null,null,null,null,null,null,null,null,"Error Angle",{"$f":"ATAN(F48/K25)*180/PI()","v":9.4623222080256166}]
[]
[]
[]
[]
[]
[null,null,null,null,null,{"$f":"90-F23","v":80.537677791974389}]
[null,null,null,null,null,"Degrés"]
[]
[]
[]
[]
[]
[]
[]
[]
[]
[null,null,null,null,null,25]
[]
[]
[null,"Notes de Chantier"]
[]
[]
[null,"Avertissement:  Les informations et les calculs par ce document ont ete developpes par une source fiable conformement aux normes de l'industrie et sont consideres comme correctes. Cette information ne devrait pas etre invoquee pour une application specifique sans l'examen par professionnel competent incluant la verification de son exactitude, la pertinence et l'applicabilite. Ce documentpeutne pas etre adaptable a' toutes les situations et doit etre utilise a vois risques et perils"]
[]
[]
[null,{"$f":"Credits!B11","v":"French Version 1.0 - January 11, 2018"},null,null,null,null,null,null,null,null,null,null,null,"Developed by Griswold Tower Software, PC"]

{"sheet":"Montage des poulies","index":7,"n_rows":56,"n_cols":28,"rows_kept":56,"cut":false,"hidden":false,"merged":[[27,6,27,12],[0,1,0,13],[1,1,1,13],[2,4,2,6],[20,6,20,12],[21,6,21,12],[3,3,3,7],[4,8,4,17],[23,16,23,23],[24,15,24,23],[22,19,22,21],[27,19,27,21],[25,2,25,22],[19,6,19,12],[4,20,4,23],[7,6,7,12],[2,27,3,27],[18,19,18,21],[17,2,17,22],[10,6,10,12],[11,6,11,12],[12,6,12,12],[13,6,13,12],[15,6,15,12],[2,20,2,23],[3,20,3,23],[18,6,18,12],[2,26,3,26],[13,15,16,23],[9,6,9,12],[14,6,14,12],[4,4,4,6],[8,6,8,12],[26,19,26,21],[19,19,19,21],[20,19,20,21],[21,19,21,21],[26,6,26,12],[52,1,54,23],[49,1,51,23],[28,19,28,21],[29,19,29,21],[31,16,31,23],[32,15,32,23],[28,6,28,12],[29,6,29,12],[30,19,30,21]]}
[]
[]
[null,"Contact",null,null,"Gordon Lyman",null,null,null,null,null,null,null,null,null,null,null,null,null,null,null,"Bill Griswold",null,null,null,null,null,"Crown\nBlock Load","Heel\nBlock Load"]
[null,"Email",null,"gl@esystemtraining.com ",null,null,null,null,null,null,null,null,null,null,null,null,null,null,null,null,"BillGriswold@Live.com",null,null,null,null,"Type"]
[null,"Mobile No",null,null," (210) 410-2091",null,null,null,"Montage poulies de tête et de basse sur face",null,null,null,null,null,null,null,null,null,null,null,"(704) 906-9113",null,null,null,null,"Type 1",{"$f":"'Type 1'!J22","v":715.93396153062133}]
[null,null,null,null,null,null,null,null,null,null,null,null,null,null,null,null,null,null,null,null,null,null,null,null,null,"Type 2",{"$f":"'Type 2'!G21","v":400}]
[null,null,null,null,null,null,"Information Projet:",null,null,null,null,null,null,null,null,null,null,null,null,null,null,null,null,null,null,"Type 3",{"$f":"'Type 3'!G20","v":488.02526032036855},{"$f":"'Type 3'!E46","v":345.46274173885445}]
[null,"Date:",null,null,null,null,{"$f":"Menu!E9","v":"00:00:00"}]
[null,"Entrepreneur:",null,null,null,null,{"$f":"Menu!K9","v":0},null,null,null,null,null,null,null,null,null,null,null,null,null,null,null,null,null,null,{"$f":"'Type 1'!G15","v":"Tour Autoportante"}]
[null,"# Projet:",null,null,null,null,{"$f":"Menu!K15","v":0},null,null,null,null,null,null,null,null,null,null,null,null,null,null,null,null,null,null,{"$f":"'Type 2'!E15","v":"Tour Haubannée"}]
[null,"Monteur certifie:",null,null,null,null,{"$f":"Menu!K14","v":0},null,null,null,null,null,null,null,null,null,null,null,null,null,null,null,null,null,null,{"$f":"'Type 3'!E15","v":"Tour Haubannée"}]
[null,"Client:",null,null,null,null,{"$f":"Menu!E10","v":0}]
[null,"Nom du site:",null,null,null,null,{"$f":"Menu!E12","v":0},null,null,null,null,null,null,null,null,null,null,null,null,null,null,null,null,null,null,"Panier"]
[null,"# Site:",null,null,null,null,{"$f":"Menu!E13","v":0},null,null,null,null,null,null,null,null,{"$f":"IF(G15=\"Tour Monopole\",\"WARNING - This Page Not Applicable to Monopoles\",\"\")","v":""},null,null,null,null,null,null,null,null,null,"Étranglement"]
[null,"Type de Tour:",null,null,null,null,{"$f":"IF(Z16=\"Type 1\",Z9,IF(Z16=\"Type 2\",Z10,IF(Z16=\"Type 3\",Z11,\"\")))","v":"Tour Haubannée"},null,null,null,null,null,null,{"$f":"IF(G15=\"Monopole Tower\",\"<----\",\"\")","v":""}]
[null,"Type de Levage:",null,null,null,null,"Type 2",null,null,null,null,null,null,null,null,null,null,null,null,null,null,null,null,null,null,{"$f":"G16","v":"Type 2"}]
[]
[null,null,"Attachement Poulie de Tête à la Face"]
[null,"Arrangement Elingue",null,null,null,null,"Panier",null,null,null,null,null,null,null,null,"Charge Poulie",null,null,null,{"$f":"IF(Z16=\"Type 1\",AA5,IF(Z16=\"Type 2\",AA6,(IF(Z16=\"Type 3\",AA7,\"\"))))","v":400},null,null,"Lbs",null,null,{"$f":"G19","v":"Panier"}]
[null,"Elingue Poulie de Tête ",null,null,null,null,"S2 - 16 - 1500",null,null,null,null,null,null,null,null,"Longueur Elinque",null,null,null,{"$f":"IF(Z16=\"\",\"\",VLOOKUP(Z20,Équipements!E29:J42,3,FALSE)*12)","v":192},null,null,"Po.",null,null,{"$f":"G20","v":"S2 - 16 - 1500"}]
[null,"Largeur Face au Sommet",null,null,null,null,30,null,null,null,null,null,null,"In.",null,"Capacite Elingue",null,null,null,{"$f":"IF(Z16=\"\",\"\",VLOOKUP(Z20,Équipements!E29:J42,5,FALSE))","v":1500},null,null,"Lbs"]
[null,"Dimension Platte",null,null,null,null,2.5,null,null,null,null,null,null,"In.",null,"Charge Elingue",null,null,null,{"$f":"IF(Z16=\"\",\"\",IF(Z19=\"Étranglement\",1,0.5)*(T19/2)/COS(PI()*T23/360))","v":101.35400611877159},null,null,"Lbs"]
[null,null,null,null,null,null,null,null,null,null,null,null,null,null,null,"Angle",null,null,null,{"$f":"IF(Z16=\"\",\"\",(360/PI())*ASIN(G21*IF(Z19=\"Étranglement\",0.5,1)/(T20-3.14*G22)))","v":18.751765054529198},null,null,"Degreés"]
[null,null,null,null,null,null,null,null,null,null,null,null,null,null,null,null,{"$f":"IF(Z16=\"\",\"\",IF(T21>T22,\"Elingue Pour Tete Ok\",\"Élingue poulie de tête surchargée\"))","v":"Elingue Pour Tete Ok"}]
[null,null,null,null,null,null,null,null,null,null,null,null,null,null,null,{"$f":"IF(Z16=\"\",\"\",IF(G21>IF(Z19=\"Étranglement\",(T20-3.14*G22),0.5*(T20-3.14*G22)),\"Attention – Élingue poulie de tête trop courte\",\"\"))","v":""}]
[null,null,{"$f":"IF(Z16=\"Type 3\",\"Attache Poulie de Base à la Face\",\"\")","v":""}]
[null,{"$f":"IF(Z16=\"Type 3\",\"Arrangement Elingue\",\"\")","v":""},null,null,null,null,"Panier",null,null,null,null,null,null,null,null,{"$f":"IF(Z16=\"Type 3\",\"Charge Poulie\",\"\")","v":""},null,null,null,{"$f":"IF(Z16=\"Type 1\",\"\",IF(Z16=\"Type 2\",\"\",IF(Z16=\"Type 3\",AB7,\"\")))","v":""},null,null,{"$f":"IF(Z16=\"Type 3\",\"Lbs\",\"\")","v":""},null,null,{"$f":"G27","v":"Panier"}]
[null,{"$f":"IF(Z16=\"Type 3\",\"Elingue Poulie à la Base\",\"\")","v":""},null,null,null,null,"S1 - 10 - 1000",null,null,null,null,null,null,null,null,{"$f":"IF(Z16=\"Type 3\",\"Longuer Elingue\",\"\")","v":""},null,null,null,{"$f":"IF(Z16=\"Type 3\",VLOOKUP(Z28,Équipements!E29:J42,3,FALSE)*12,\"\")","v":""},null,null,{"$f":"IF(Z16=\"Type 3\",\"Po.\",\"\")","v":""},null,null,{"$f":"G28","v":"S1 - 10 - 1000"}]
[null,{"$f":"IF(Z16=\"Type 3\",\"Largeur face à la base\",\"\")","v":""},null,null,null,null,30,null,null,null,null,null,null,{"$f":"IF(Z16=\"Type 3\",\"In.\",\"\")","v":""},null,{"$f":"IF(Z16=\"Type 3\",\"Capacite Elingue\",\"\")","v":""},null,null,null,{"$f":"IF(Z16=\"Type 3\",VLOOKUP(Z28,Équipements!E29:J42,5,FALSE),\"\")","v":""},null,null,{"$f":"IF(Z16=\"Type 3\",\"Lbs\",\"\")","v":""}]
[null,{"$f":"IF(Z16=\"Type 3\",\"Dimension Platte\",\"\")","v":""},null,null,null,null,2.5,null,null,null,null,null,null,{"$f":"IF(Z16=\"Type 3\",\"In.\",\"\")","v":""},null,{"$f":"IF(Z16=\"Type 3\",\"Charge Elingue\",\"\")","v":""},null,null,null,{"$f":"IF(Z16=\"Type 3\",IF(Z27=\"Étranglement\",1,0.5)*(T27/2)/COS(PI()*T31/360),\"\")","v":""},null,null,{"$f":"IF(Z16=\"Type 3\",\"Lbs\",\"\")","v":""}]
[null,null,null,null,null,null,null,null,null,null,null,null,null,null,null,{"$f":"IF(Z16=\"Type 3\",\"Angle\",\"\")","v":""},null,null,null,{"$f":"IF(Z16=\"Type 3\",(360/PI())*ASIN(G29*IF(Z27=\"Étranglement\",0.5,1)/(T28-3.14*G30)),\"\")","v":""},null,null,{"$f":"IF(Z16=\"Type 3\",\"Degreés\",\"\")","v":""}]
[null,null,null,null,null,null,null,null,null,null,null,null,null,null,null,null,{"$f":"IF(Z16=\"Type 3\",IF(T29>T30,\"Elingue Poulie Base Ok.\",\"Élingue poulie de base surchargée\"),\"\")","v":""}]
[null,null,null,null,null,null,null,null,null,null,null,null,null,null,null,{"$f":"IF(Z16=\"Type 3\",IF(G29>IF(Z27=\"Étranglement\",(T28-3.14*G30),0.5*(T28-3.14*G30)),\"Attention – Élingue poulie de base trop courte\",\"\"),\"\")","v":""}]
[]
[]
[]
[]
[]
[]
[]
[]
[]
[null,null,null,null,null,null,null,null,null,null,null,null,null,null,"Notes: "]
[null,null,null,null,null,null,null,null,null,null,null,null,null,null,"   1. Largeur Face à Lextérieur des Plattes"]
[null,null,null,null,null,null,null,null,null,null,null,null,null,null,"   2. Angle < 60 degreés"]
[]
[]
[]
[null,"Notes de Chantier"]
[]
[]
[]
[null,"Avertissement:  Les informations et les calculs par ce document ont ete developpes par une source fiable conformement aux normes de l'industrie et sont consideres comme correctes. Cette information ne devrait pas etre invoquee pour une application specifique sans l'examen par professionnel competent incluant la verification de son exactitude, la pertinence et l'applicabilite. Ce documentpeutne pas etre adaptable a' toutes les situations et doit etre utilise a vois risques et perils."]
[]
[]
[null,{"$f":"Credits!B11","v":"French Version 1.0 - January 11, 2018"},null,null,null,null,null,null,null,null,null,null,null,null,null,null,null,null,null,null,null,null,null,"Developed by Griswold Tower Software, PC"]

{"sheet":"Équipements","index":8,"n_rows":46,"n_cols":11,"rows_kept":46,"cut":false,"hidden":false,"merged":[[29,8,29,9],[30,4,30,5],[30,6,30,7],[30,8,30,9],[31,4,31,5],[31,6,31,7],[43,1,44,10],[4,3,4,7],[2,8,2,10],[3,8,3,10],[4,8,4,10],[28,4,28,5],[28,6,28,7],[28,8,28,9],[29,4,29,5],[29,6,29,7],[37,6,37,7],[37,8,37,9],[38,4,38,5],[38,6,38,7],[38,8,38,9],[35,4,35,5],[0,1,0,8],[1,1,1,8],[27,4,27,5],[27,6,27,7],[27,8,27,9],[7,4,7,9],[8,4,26,9],[41,4,41,5],[41,6,41,7],[41,8,41,9],[34,4,34,5],[34,6,34,7],[34,8,34,9],[39,4,39,5],[39,6,39,7],[39,8,39,9],[37,4,37,5],[36,6,36,7],[36,8,36,9],[40,4,40,5],[40,6,40,7],[40,8,40,9],[35,6,35,7],[35,8,35,9],[36,4,36,5],[31,8,31,9],[32,4,32,5],[32,6,32,7],[32,8,32,9],[33,4,33,5],[33,6,33,7],[33,8,33,9]]}
[]
[]
[null,"Contact","Gordon Lyman",null,null,null,null,null,"Bill Griswold"]
[null,"Email","gl@esystemtraining.com ",null,null,null,null,null,"BillGriswold@Live.com"]
[null,"Mobile No"," (210) 410-2091","List des équipements de l'entrepreneur",null,null,null,null,"(704) 906-9113"]
[]
[]
[null,"Hoist Name","Working Capacity (Pounds)",null,"Directions"]
[null,"Hoist 1 - 1000",1000,null,"Faites la liste de tous les palans, blocs et élingues applicables dans les colonnes appropriées. Si vous avez plusieurs palans, poulies ou élingues identiques, ne les lister qu'une seule fois. Fournir également la capacité de travail nominale pour chacun de ceux-ci et la longueur des élingues. Assurez-vous de sauvegarder une copie maîtresse de cette feuille de calcul une fois que cette information a été saisie afin de ne pas avoir à ressaisir les informations chaque fois que vous l'utilisez.\nLorsque vous démarrez un nouveau plan de levage, choisissez le (s) palan (s) et le (s) poulie (s) sur la feuille de menu en utilisant les boîtes déroulantes situées juste en dessous de la cellule d'entrée de charge soulevée. Les noms de ces pièces d'équipement apparaîtront sur les feuilles du plan de gréement de types 1, 2 et 3. Si la capacité de l'un de ces équipements est dépassée, un avertissement apparaîtra dans les LETTRES ROUGES adjacentes à l’équipement\n"]
[null,"Hoist 2 - 1500",1500]
[null,"Hoist 3 - 2000",2000]
[null,"Hoist 4 - 5000",5000]
[]
[]
[]
[]
[]
[]
[]
[]
[]
[null,"Block Name","Working Capacity (Pounds)"]
[null,"Block 1 - 1000",1000]
[null,"Block 2 - 2000",2000]
[null,"Block 3 - 5000",5000]
[null,"Block 4 - 7500",7500]
[]
[null,null,null,null,"Sling Name",null,"Length (Ft)",null,"Capacity (Pounds)"]
[null,null,null,null,"S1 - 10 - 1000",null,10,null,1000]
[null,null,null,null,"S2 - 16 - 1500",null,16,null,1500]
[null,null,null,null,"S3 - 12 - 2000",null,12,null,2000]
[null,null,null,null,"S4 - 18 - 2000",null,18,null,2000]
[null,null,null,null,"S5 - 15 - 5000",null,15,null,5000]
[null,null,null,null,"S6 - 20 - 5000",null,20,null,5000]
[]
[]
[]
[]
[]
[]
[]
[]
[]
[null,"Avertissement:  Les informations et les calculs par ce document ont ete developpes par une source fiable conformement aux normes de l'industrie et sont consideres comme correctes. Cette information ne devrait pas etre invoquee pour une application specifique sans l'examen par professionnel competent incluant la verification de son exactitude, la pertinence et l'applicabilite. Ce documentpeutne pas etre adaptable a' toutes les situations et doit etre utilise a vois risques et perils."]
[]
[null,{"$f":"Credits!B11","v":"French Version 1.0 - January 11, 2018"},null,null,null,null,null,null,null,null,"Developed by Griswold Tower Software, PC"]

{"sheet":"Exigences de levage","index":9,"n_rows":0,"n_cols":0,"rows_kept":0,"cut":false,"hidden":false,"merged":[]}

{"sheet":"Credits","index":10,"n_rows":17,"n_cols":2,"rows_kept":17,"cut":false,"hidden":false,"merged":[[10,1,10,3]]}
[]
["The Equation Development, Drafting and Primary Spreadsheet by William A. Griswold, Jr., PE "]
["Griswold Tower Software, PC"]
[]
["Overview and Editing provided by Gordon Lyman"]
["eSystem Training Solutions"]
[]
["Additional Macro Development provided by James M. Ruedlinger, PE"]
["Electronics Research, Inc."]
[]
["Version","French Version 1.0 - January 11, 2018"]
[]
[4.2,"Formatting Improvements"]
[4.3,"Corrected problems with dropdown boxes on the Face Block Mount Tab"]
[4.4000000000000004,"Added Note to Engineer - Reactions do not include an Impact Factor - Fixed \"Angle\" or \"Distance\" dropdown on Type 3 tab."]
[4.5,"Corrected error in the Tag Angle - Type 1 Lift"]
["FV 1.0","Jan 12, 2018 - Gordon Lyman and Bill Griswold converted spreadsheet to French with the assistance of Richard Gravel of Captel, Inc."]

{"sheet":"Sheet2","index":11,"n_rows":7,"n_cols":10,"rows_kept":7,"cut":false,"hidden":true,"merged":[[1,2,36,4]]}
[]
[null,null,{"$f":"IF(J7=\"Monopole Tower\",\"MP_PIC\",1)","v":"MP_PIC"}]
[null,null,null,null,null,null,null,null,null,"Monopole Tower"]
[null,null,null,null,null,null,null,null,null,"Self Support Tower"]
[null,null,null,null,null,null,null,null,null,"Guyed Tower"]
[]
[null,null,null,null,null,null,null,null,null,"Monopole Tower"]

{"sheet":"Sheet1","index":12,"n_rows":16,"n_cols":8,"rows_kept":16,"cut":false,"hidden":true,"merged":[]}
[]
[]
[]
[null,null,null,null,null,null,"X1","Y2"]
[null,"Alpha = ",7,null,null,null,2E-3,100]
[null,"Beta =",30,null,null,null,2.476,90]
[null,"Load =",300,null,null,null,5.2160000000000002,80]
[null,null,null,null,null,null,8.2650000000000006,70]
[null,"tan(Alpha) = ",{"$f":"TAN(C5*PI()/180)","v":0.1227845609029046},null,null,null,11.683999999999999,60]
[null,"tan(Alpha/2) =",{"$f":"TAN(C5*PI()/360)","v":6.1162620150484306E-2},null,null,null,15.555999999999999,50]
[null,"tan(Beta) = ",{"$f":"TAN(C6*PI()/180)","v":0.57735026918962573},null,null,null,20,40]
[null,null,null,null,null,null,25.192,30]
[null,null,{"$f":"C7*C9","v":36.835368270871378},null,null,null,31.422999999999998,20]
[null,null,{"$f":"C13*C10","v":2.2529476376545081},null,null,null,39.234999999999999,10]
[null,null,{"$f":"C7*(1 - C9*C10)","v":297.74705236234547},null,null,null,50,0]
[null,null,{"$f":"C15*C11","v":171.90434083181773}]